Cogmind - Beta 13 @@@ ROGUE MODE // 2024.07.08 @ 01:14:33 Player: ThatBishHoly Result: Destroyed by WA-XO7(R) with Subdweller Beam Cannon Performance ------------- Evolutions (0) 0 Regions Visited (3) 600 Robots Destroyed (9) 45 Value Destroyed (153) 153 Prototype IDs (0) 0 Alien Tech Used (0) 0 Bonus (0) 0 TOTAL SCORE: 798 Bonus ------- None Cogmind --------- Core Integrity 0/250 Matter 300/300 Energy 100/100 System Corruption 3% Temperature Cool (9) Movement Walking (120) Location -10/Subcaves Parts ------- > --- POWER (1) -------- (None) > --- PROPULSION (2) --- Aluminum Leg > --- UTILITY (2) ------ (None) > --- WEAPON (2) ------- Barrage Gun > --- INVENTORY (5) ---- Huge Storage Unit Peak State ------------ > --- POWER ------------ Light Ion Engine > --- PROPULSION ------- Aluminum Leg Aluminum Leg > --- UTILITY ---------- (None) > --- WEAPON ----------- Barrage Gun Mining Laser > --- INVENTORY -------- Huge Storage Unit [Rating: 7] Favorites ----------- Power Light Ion Engine Engine Light Ion Engine Propulsion Aluminum Leg Leg Aluminum Leg Wheel Wheel Utility Heat Sink Device Heat Sink Storage Huge Storage Unit Weapon EM Pulse Gun Energy Gun EM Pulse Gun Ballistic Gun Barrage Gun Special Weapon Mining Laser Build | -11 -10 -10 -10 ------- Run | Yrd Mat Min Sub Slots Evolved . | . . . . Power . | . . . . Propulsion . | . . . . Utility . | . . . . Weapon . | . . . . Parts Attached 14 | 5 3 5 1 Power 3 | 1 1 1 . Engine 3 | 1 1 1 . Core . | . . . . Reactor . | . . . . Propulsion 4 | 2 . 2 . Treads . | . . . . Leg 2 | . . 2 . Wheel 2 | 2 . . . Hover . | . . . . Flight . | . . . . Utility 3 | . 2 1 . Device 1 | . 1 . . Storage 2 | . 1 1 . Processor . | . . . . Hackware . | . . . . Protection . | . . . . Artifact . | . . . . Weapon 4 | 2 . 1 1 Energy Gun 2 | 2 . . . Energy Cannon . | . . . . Ballistic Gun 1 | . . . 1 Ballistic Cannon . | . . . . Launcher . | . . . . Special Weapon 1 | . . 1 . Impact Weapon . | . . . . Slashing Weapon . | . . . . Piercing Weapon . | . . . . Special Melee Weapon . | . . . . Unidentified Prototypes . | . . . . Parts Lost 9 | . 1 5 3 Power 2 | . . 1 1 Propulsion 3 | . . 2 1 Utility 1 | . . 1 . Weapon 3 | . 1 1 1 Highest Loss Streak 5 | . 1 5 3 To Critical Strikes . | . . . . Average Slot Usage (%) 70 | . 75 65 64 Engine 14 | . 14 14 14 Leg 11 | . . 19 28 Wheel 16 | . 28 8 . Device 4 | . 5 4 . Storage 2 | . 1 4 . Energy Gun 14 | . 25 4 . Special Weapon 5 | . . 9 10 Naked Turns . | . . . . Heaviest Build 88 | 7 88 88 7 Greatest Support 26 | 26 26 26 20 Greatest Overweight (x) 3 | . 3 3 . Average Overweight (x) . | . . . . Largest Inventory Capacity 25 | 5 25 25 5 Average Capacity 8 | 5 7 11 5 Most Carried 4 | 4 4 4 2 Average Carried 1 | . 1 1 1 Final Capacity 25 | 5 25 5 5 Final Carried 4 | . 4 1 1 Class Distribution -------------------- 100% | Mutant Dominant Class ---------------- Mutant | -10/Materials Mutant | -10/Mines Mutant | -10/Subcaves Resources | -11 -10 -10 -10 ----------- Run | Yrd Mat Min Sub Matter Collected 333 | 225 48 50 10 Remotely . | . . . . Salvage Created 292 | . 292 . . Parts 18 | . 18 . . Haulers Intercepted 1 | . 1 . . Recyclers Shooed . | . . . . Parts Field Recycled . | . . . . Retrieved Matter . | . . . . Parts Self-Destructed . | . . . . Prevented . | . . . . Kills | -11 -10 -10 -10 ------- Run | Yrd Mat Min Sub Combat Hostiles Destroyed 3 | . 3 . . Guns 2 | . 2 . . AOE 1 | . 1 . . Classes Destroyed 6 | . 6 . . Worker 2 | . 2 . . Builder 1 | . 1 . . Hauler 1 | . 1 . . Recycler 1 | . 1 . . Watcher 1 | . 1 . . Grunt 3 | . 3 . . Best Kill Streak 5 | . 5 . . Combat Bots Only 2 | . 2 . . Max Kills in Single Turn 3 | . 3 . . Gunslinging . | . . . . Exploded 1 | . 1 . . Melee . | . . . . Uniques/NPCs Destroyed . | . . . . Combat | -11 -10 -10 -10 -------- Run | Yrd Mat Min Sub Hostile Shots Fired 51 | . 6 32 13 Missed 13 | . 2 8 3 Damage Taken 763 | . 106 401 256 Core 273 | . 6 147 120 Absorbed by Shields . | . . . . Core Remaining (%) 100 | 100 . . . Volleys Fired 16 | . 12 1 3 Largest 2 | . 2 1 1 Hottest 100 | . 80 100 28 Shots Fired 28 | . 24 1 3 Gun 27 | . 24 . 3 Cannon . | . . . . Launcher . | . . . . Special 1 | . . 1 . Kinetic 3 | . . . 3 Thermal 1 | . . 1 . Explosive . | . . . . Electromagnetic 24 | . 24 . . Robot Hit Streak 9 | . 9 . 3 Robot Miss Streak 2 | . 2 . . Penetration Max . | . . . . Secondary Targets . | . . . . Shots Hit Robots 17 | . 14 . 3 Core Hits 9 | . 9 . . Critical Kills . | . . . . Critical Parts Destroyed . | . . . . Critical Strikes . | . . . . Melee Attacks . | . . . . Impact . | . . . . Slashing . | . . . . Piercing . | . . . . Sneak Attacks . | . . . . Combat Hostiles . | . . . . Follow-up Attacks . | . . . . Damage Inflicted 564 | . 510 . 54 Guns 285 | . 231 . 54 Cannons . | . . . . Explosions 265 | . 265 . . Melee . | . . . . Ramming 14 | . 14 . . Kinetic 54 | . . . 54 Thermal 109 | . 109 . . Explosive 156 | . 156 . . Electromagnetic 231 | . 231 . . Impact . | . . . . Slashing . | . . . . Piercing . | . . . . Highest Corruption 3 | . . 3 3 Average Corruption 3 | . . 3 3 Corruption Purged . | . . . . Corruption Blocked . | . . . . Effects 2 | . . 2 . Data Loss (minor) 1 | . . 1 . Data Loss (major) 1 | . . 1 . Overload Shots . | . . . . Overflow Damage 25 | . 25 . . Projectiles . | . . . . Explosions 25 | . 25 . . Melee . | . . . . Knockbacks . | . . . . Impact . | . . . . Kinetic . | . . . . Secondary . | . . . . Self-Inflicted Damage 61 | . 61 . . Shots 1 | . 1 . . Rammed 3 | . 3 . . Targets Rammed 3 | . 3 . . Kicked . | . . . . Crushed . | . . . . Highest Temperature 122 | . 122 20 . Average Temperature 41 | . 47 10 . Received Heat Transfer 231 | . 24 129 78 Siege Activations . | . . . . Robots Corrupted . | . . . . Combat Hostiles . | . . . . Parts Fried 3 | . 3 . . Impact Corruptions . | . . . . Robots Melted . | . . . . Combat Hostiles . | . . . . Parts Melted . | . . . . Heat Transferred 200 | . 200 . . Parts Sabotaged . | . . . . Parts Stolen . | . . . . Parts Stripped . | . . . . Power Chain Reactions 2 | . 2 . . Alert | -11 -10 -10 -10 ------- Run | Yrd Mat Min Sub Peak Influence 173 | . 173 67 . Initial 67 | . . 67 . Average 50 | . 71 38 . Maximum Alert Level . | . . . . Low Security (%) 100 | 100 100 100 . Level 1 . | . . . . Level 2 . | . . . . Level 3 . | . . . . Level 4 . | . . . . Level 5 . | . . . . High Security . | . . . . Max Security . | . . . . Squads Dispatched 1 | . 1 . . Investigation . | . . . . Extermination . | . . . . Reinforcement 1 | . 1 . . Assault . | . . . . Garrison . | . . . . Intercept . | . . . . Searches Triggered . | . . . . Construction Impeded . | . . . . Haulers Reinforced . | . . . . Active Scanning Responses . | . . . . Cargo Convoy Interrupts . | . . . . Stealth | -11 -10 -10 -10 --------- Run | Yrd Mat Min Sub Distress Signals . | . . . . Communications Jammed . | . . . . Distress Signals . | . . . . Times Spotted 16 | . 9 5 2 Peak Tracking Total 4 | . 4 3 2 Tactical Retreats . | . . . . Traps | -11 -10 -10 -10 ------- Run | Yrd Mat Min Sub Traps Triggered . | . . . . Indirectly . | . . . . Trap Hack Attempts . | . . . . Triggered . | . . . . Disarmed . | . . . . Reprogrammed . | . . . . Reused . | . . . . Traps Extracted . | . . . . Installed . | . . . . Triggered 1 | . . 1 . Machines | -11 -10 -10 -10 ---------- Run | Yrd Mat Min Sub Machines Disabled 2 | . 2 . . Max in Single Turn 2 | . 2 . . Machines Repaired . | . . . . Machines Dismantled . | . . . . Machines Sabotaged . | . . . . Overloaded Fab Kills . | . . . . Hacking | -11 -10 -10 -10 --------- Run | Yrd Mat Min Sub Machines Accessed 3 | . 3 . . Terminals 2 | . 2 . . Fabricators . | . . . . Repair Stations . | . . . . Recycling Units 1 | . 1 . . Scanalyzers . | . . . . Garrison Access . | . . . . Total Hacks 8 | . 8 . . Successful 2 | . 2 . . Failed 6 | . 6 . . Catastrophic . | . . . . Database Lockouts . | . . . . Manual 5 | . 5 . . Terminals 6 | . 6 . . Fabricators . | . . . . Repair Stations . | . . . . Recycling Units 2 | . 2 . . Scanalyzers . | . . . . Garrison Access . | . . . . Terminal Hacks 2 | . 2 . . Zone Layout 2 | . 2 . . Fabricator Hacks . | . . . . Repair Station Hacks . | . . . . Recycling Unit Hacks . | . . . . Scanalyzer . | . . . . Garrison Access Hacks . | . . . . Unauthorized Hacks . | . . . . Terminals . | . . . . Fabricators . | . . . . Repair Stations . | . . . . Recycling Units . | . . . . Scanalyzers . | . . . . Garrison Access . | . . . . Data Cores Recovered . | . . . . Used . | . . . . Hacking Detections 2 | . 2 . . Full Trace Events 1 | . 1 . . Feedback Events . | . . . . Feedback Blocked . | . . . . Robot Schematics Acquired . | . . . . Robots Built . | . . . . Authchips . | . . . . Time . | . . . . Total Robot Build Rating . | . . . . Part Schematics Acquired . | . . . . Parts Built . | . . . . Authchips . | . . . . Time . | . . . . Total Part Build Rating . | . . . . Parts Repaired . | . . . . Time . | . . . . Parts Recycled . | . . . . Recycled Matter . | . . . . Retrieved Matter . | . . . . Retrieved Components . | . . . . Parts Scanalyzed . | . . . . Part Schematics Acquired . | . . . . Parts Damaged . | . . . . Bothacking | -11 -10 -10 -10 ------------ Run | Yrd Mat Min Sub Used RIF Installer . | . . . . Robots Hacked . | . . . . Non-combat . | . . . . Combat . | . . . . Robot Hacks Applied . | . . . . Relay Couplers Released . | . . . . Fabnet Peak Effective % . | . . . . Robots Rewired . | . . . . Allies Hacked . | . . . . Hacks Repelled . | . . . . Allies | -11 -10 -10 -10 -------- Run | Yrd Mat Min Sub Total Allies . | . . . . Largest Group . | . . . . Highest-Rated Group . | . . . . Highest-Rated Ally . | . . . . Total Orders . | . . . . Ally Attacks . | . . . . Total Damage . | . . . . Kills . | . . . . Allies Corrupted . | . . . . Allies Melted . | . . . . Intel | -11 -10 -10 -10 ------- Run | Yrd Mat Min Sub Robot Analysis Total . | . . . . Derelict Logs Recovered 2 | . . 1 1 Drone Launches . | . . . . Drone Recoveries . | . . . . Exploration | -11 -10 -10 -10 ------------- Run | Yrd Mat Min Sub Turns Passed 464 | 37 201 186 40 Spaces Moved 365 | 36 160 142 27 Core 13 | 13 . . . Treads . | . . . . Legs 129 | . . 102 27 Wheels 223 | 23 160 40 . Hover . | . . . . Flight . | . . . . Fastest Speed 50 | 50 90 120 120 Average Speed 106 | 75 95 124 120 Slowest Speed 135 | 90 135 135 120 Overloaded Moves . | . . . . Propulsion Burnouts . | . . . . Robots Hopped . | . . . . Cave-ins Triggered . | . . . . Exploration Rate (%) 11 | 3 25 15 2 Regions Visited 3 Branch Regions 2 Pre-discovered Areas 2 | . . 1 1 Known Exits Taken . | . . . . Unknown Exits Taken 3 | 1 1 1 . Scrap Searched 1 | . . . 1 Spaces Dug . | . . . . Terrain Destroyed 19 | . 19 . . Melee . | . . . . Projectile . | . . . . AOE 19 | . 19 . . Terrain Rammed . | . . . . Walls Destroyed . | . . . . Machines Disabled . | . . . . Actions | -11 -10 -10 -10 --------- Run | Yrd Mat Min Sub Total 409 | 45 183 149 32 Wait . | . . . . Move 362 | 35 159 141 27 Hop . | . . . . Pick Up 12 | 5 6 . 1 Fast Attach 1 | . . 1 . Attach 12 | 5 2 4 1 Detach 1 | . . 1 . Swap 1 | . 1 . . Drop 1 | . . 1 . Fire 16 | . 12 1 3 Melee . | . . . . Ram 3 | . 3 . . Kick . | . . . . Crush . | . . . . Escape Stasis . | . . . . Rewire . | . . . . Trap . | . . . . Miscellaneous . | . . . . Route ------- -11/Scrapyard -10/Materials -10/Mines -10/Subcaves History --------- Turn | Location | Event 7 | -11/Scrapyard | Discovered new exit (range 15) 38 | -11/Scrapyard | Entered Materials 194 | -10/Materials | Discovered new exit (range 13) 239 | -10/Materials | Entered Mines 249 | -10/Mines | Learned location of Recycling (-8) 320 | -10/Mines | Build established: Mutant 324 | -10/Mines | Lost 5 parts (1p2n1u1w) 373 | -10/Mines | Core integrity fell below 50% 419 | -10/Mines | Discovered new exit (range 4) 425 | -10/Mines | Entered Subcaves 438 | -10/Subcaves | Learned location of Zion (-7) 460 | -10/Subcaves | Core integrity fell below 20% 465 | -10/Subcaves | Destroyed by WA-XO7(R) with Subdweller Beam Cannon Last Messages --------------- 00398_ U-05 Engineer lays Concrete. 00401_ U-05 Engineer builds a Wall. 00402_ K-01 Serf collects debris. 00419_ EXIT=FOUND LOCATION=UNKNOWN AMBIENT_HEAT=-10 GOAL=ESCAPE 00425_ Searching scrap... 00425_ Found Sub. Laser. 00425_ Found Barrage Gun. 00425_ Found 16 Matter. 00426_ Subatomizers dissect the Barrage Gun. 00428_ Acquired Barrage Gun. 00431_ Acquired 10 matter. 00438_ Acquired derelict log, extracted data. World map updated: -7/Zion. 00439_ Subatomizers dissect the Sub. Laser. 00455_ Mining Laser destroyed. 00463_ Aluminum Leg destroyed. 00463_ Lgt. Ion Engine destroyed. Map ----- +----------------------------------------------------+ | ?????????????????????????????????????????????????? | | ?????????????????????????????????????????????????? | | ?????????????????????????????????????????????????? | | ?????????????????????????????????????????????????? | | ?????????????????????????????????????????????????? | | ?????????????????????????????????????????????????? | | ?????????????????????????????????????????????????? | | ?????????????????????????????????????????????????? | | ?????????????????????????????????????????????????? | | ?????????????????????????????????????????????????? | | ?????????????????????????????????????????????????? | | ?????????????????????????????????????????????????? | | ?????????????????????????????????????????????????? | | ?????????????????????????????????????????????????? | | ?????????????????????????????????????????????????? | | ?????????????????????????????????????????????????? | | ?????????????????????????????????????????????????? | | ?????????????????????????????????????????????????? | | ??????????????????????????????????##?????????????? | | ?????????????????????????????????? ????????????? | | ?????????????????????????????????? ????????????? | | ?????????????????????????????????# #????????????? | | ?????????????????????????????????# #????????????? | | ??????????????????###??######????# #????????????? | | ??????????????????#; ### ###### ##???????????? | | ??????????????????## @ # #???????????? | | ??????????????????# R R #???????????? | | ??????????????????# ### ## #???????????? | | ??????????????????# ##?# ###? ????????????? | | ??????????????????## #### #### ##???????????? | | ???????????????????## ## #???????????? | | ????????????????????# # ###?????????? | | ?????????????? #?????????? | | ??????????????# [ #?????????? | | ??????????????### % ##?????????? | | ???????????????# ### ####### ## ##??????????? | | ???????????????###???##??????#########???????????? | | ?????????????????????????????????????????????????? | | ?????????????????????????????????????????????????? | | ?????????????????????????????????????????????????? | | ?????????????????????????????????????????????????? | | ?????????????????????????????????????????????????? | | ?????????????????????????????????????????????????? | | ?????????????????????????????????????????????????? | | ?????????????????????????????????????????????????? | | ?????????????????????????????????????????????????? | | ?????????????????????????????????????????????????? | | ?????????????????????????????????????????????????? | | ?????????????????????????????????????????????????? | | ?????????????????????????????????????????????????? | +----------------------------------------------------+ Best States ------------- Heat Dissipation 35 Energy Generation 10 Energy Capacity 250 Matter Stores 300 Matter Capacity 300 Sight Range 16 Terrain Scan Density 10 Evasion (%) 55 Item Schematics ----------------- None Robot Schematics ------------------ None Fabricated ------------ Nothing Alien Tech Used ----------------- None Achievements -------------- None Challenges ------------ None Game ------ Seed AntimatterDamperAnalyzer Manual? 0 Play Time 00:09:08 Cumulative 28.1 hours Start 2024.07.08 @ 01:02:07 End 2024.07.08 @ 01:14:33 Sessions 1 Manual Loads 0 Difficulty Rogue Special Mode None Game No. 88 Rogue 88 Adventurer 0 Explorer 0 Win Type - Total 0 Types 0/0/0/0/0/0/0/0/0 Lore% 17 Gallery% 32 Achievement% 23 Wizard Run 0 Options --------- Layout 1 ASCII 0 Keyboard 0 Movement Arrows Keybinds 0 Fullscreen 1 Font 16/SmallcapsGlow Map View 25x20 Zoom Use 100% Tactical HUD 1 Map Filters NONE Filters NONE Steam SD RUN: dae854e5-250d-4490-bf34-48acd1673823